[Event "Titled Tuesday Blitz December 27 Early 2022"]
[White "Hardaway, Brewington"]
[Black "Xu, Yi"]
[WhiteFideId "30941849"]
[BlackFideId "8605564"]
[WhiteElo "2363"]
[BlackElo "2527"]
[Result "1/2-1/2"]
[Round "03"]
[TimeControl "180+2"]
[Date "2022.12.27"]
[WhiteClock "0:00:07"]
[BlackClock "0:00:03"]

1. e4 {[%clk 0:03:00]}  c5 {[%clk 0:02:57]} 2. c3 {[%clk 0:02:59]}  Nf6 {[%clk 0:02:55]} 3. e5 {[%clk 0:02:59]}  Nd5 {[%clk 0:02:54]} 4. d4 {[%clk 0:02:59]}  cxd4 {[%clk 0:02:53]} 5. cxd4 {[%clk 0:02:58]}  d6 {[%clk 0:02:51]} 6. Nf3 {[%clk 0:02:57]}  Nc6 {[%clk 0:02:50]} 7. Bc4 {[%clk 0:02:52]}  Nb6 {[%clk 0:02:49]} 8. Bb5 {[%clk 0:02:21]}  dxe5 {[%clk 0:02:45]} 9. Nxe5 {[%clk 0:02:11]}  Bd7 {[%clk 0:02:44]} 10. Nxd7 {[%clk 0:02:09]}  Qxd7 {[%clk 0:02:43]} 11. O-O {[%clk 0:02:10]}  e6 {[%clk 0:02:41]} 12. Nc3 {[%clk 0:02:06]}  a6 {[%clk 0:02:37]} 13. Bxc6 {[%clk 0:02:04]}  Qxc6 {[%clk 0:02:38]} 14. Qg4 {[%clk 0:01:32]}  h5 {[%clk 0:02:27]} 15. Qg5 {[%clk 0:01:22]}  Rd8 {[%clk 0:02:23]} 16. Be3 {[%clk 0:01:08]}  h4 {[%clk 0:02:15]} 17. Rac1 {[%clk 0:00:39]}  h3 {[%clk 0:02:06]} 18. gxh3 {[%clk 0:00:38]}  Qf3 {[%clk 0:01:46]} 19. Qg3 {[%clk 0:00:26]}  Rxh3 {[%clk 0:01:44]} 20. Qxf3 {[%clk 0:00:24]}  Rxf3 {[%clk 0:01:45]} 21. Kg2 {[%clk 0:00:23]}  Rf5 {[%clk 0:01:45]} 22. Ne2 {[%clk 0:00:23]}  Rb5 {[%clk 0:01:35]} 23. b3 {[%clk 0:00:23]}  Nd5 {[%clk 0:01:34]} 24. Rc4 {[%clk 0:00:17]}  Bd6 {[%clk 0:01:28]} 25. Rfc1 {[%clk 0:00:15]}  Kd7 {[%clk 0:01:20]} 26. Nc3 {[%clk 0:00:11]}  Nxc3 {[%clk 0:01:03]} 27. R4xc3 {[%clk 0:00:11]}  Rh8 {[%clk 0:01:02]} 28. Rh1 {[%clk 0:00:11]}  Rbh5 {[%clk 0:00:56]} 29. h3 {[%clk 0:00:10]}  g5 {[%clk 0:00:50]} 30. Rcc1 {[%clk 0:00:08]}  f6 {[%clk 0:00:50]} 31. Bd2 {[%clk 0:00:08]}  Rh4 {[%clk 0:00:49]} 32. Bc3 {[%clk 0:00:07]}  Bf4 {[%clk 0:00:35]} 33. Rcd1 {[%clk 0:00:06]}  Bd6 {[%clk 0:00:25]} 34. f3 {[%clk 0:00:07]}  b5 {[%clk 0:00:20]} 35. Be1 {[%clk 0:00:03]}  R4h7 {[%clk 0:00:20]} 36. Bf2 {[%clk 0:00:04]}  Kc6 {[%clk 0:00:16]} 37. a4 {[%clk 0:00:04]}  Kd5 {[%clk 0:00:16]} 38. axb5 {[%clk 0:00:05]}  axb5 {[%clk 0:00:17]} 39. Ra1 {[%clk 0:00:04]}  Rb7 {[%clk 0:00:14]} 40. Ra6 {[%clk 0:00:03]}  Rc8 {[%clk 0:00:13]} 41. h4 {[%clk 0:00:04]}  Rc6 {[%clk 0:00:10]} 42. Rxc6 {[%clk 0:00:03]}  Kxc6 {[%clk 0:00:10]} 43. hxg5 {[%clk 0:00:04]}  fxg5 {[%clk 0:00:11]} 44. Be3 {[%clk 0:00:05]}  Rg7 {[%clk 0:00:06]} 45. Rh5 {[%clk 0:00:05]}  Bf4 {[%clk 0:00:05]} 46. Bxf4 {[%clk 0:00:05]}  gxf4+ {[%clk 0:00:06]} 47. Kf2 {[%clk 0:00:06]}  Rd7 {[%clk 0:00:06]} 48. Rc5+ {[%clk 0:00:05]}  Kb6 {[%clk 0:00:06]} 49. Re5 {[%clk 0:00:04]}  Rxd4 {[%clk 0:00:07]} 50. Ke2 {[%clk 0:00:03]}  Ka5 {[%clk 0:00:06]} 51. Rxe6 {[%clk 0:00:04]}  Kb4 {[%clk 0:00:06]} 52. Re5 {[%clk 0:00:05]}  Kxb3 {[%clk 0:00:02]} 53. Rxb5+ {[%clk 0:00:05]}  Kc4 {[%clk 0:00:02]} 54. Re5 {[%clk 0:00:05]}  Kc3 {[%clk 0:00:03]} 55. Re8 {[%clk 0:00:06]}  Rd2+ {[%clk 0:00:03]} 56. Ke1 {[%clk 0:00:06]}  Rh2 {[%clk 0:00:03]} 57. Rc8+ {[%clk 0:00:06]}  Kd3 {[%clk 0:00:03]} 58. Ra8 {[%clk 0:00:06]}  Rh1+ {[%clk 0:00:02]} 59. Kf2 {[%clk 0:00:06]}  Rh2+ {[%clk 0:00:03]} 60. Kg1 {[%clk 0:00:07]}  Rc2 {[%clk 0:00:03]} 61. Ra3+ {[%clk 0:00:07]}  Ke2 {[%clk 0:00:04]} 62. Kg2 {[%clk 0:00:06]}  Rd2 {[%clk 0:00:04]} 63. Kh3 {[%clk 0:00:07]}  Kf2 {[%clk 0:00:03]} 64. Kg4 {[%clk 0:00:07]}  Rd4 {[%clk 0:00:03]} 65. Ra2+ {[%clk 0:00:06]}  Ke3 {[%clk 0:00:04]} 66. Ra3+ {[%clk 0:00:07]}  Kf2 {[%clk 0:00:04]} 67. Ra5 {[%clk 0:00:07]}  Rc4 {[%clk 0:00:03]} 68. Rf5 {[%clk 0:00:06]}  Ke3 {[%clk 0:00:03]} 69. Re5+ {[%clk 0:00:07]}  Kd3 {[%clk 0:00:04]} 70. Rf5 {[%clk 0:00:07]}  Ke3 {[%clk 0:00:04]} 71. Re5+ {[%clk 0:00:07]}  Kf2 {[%clk 0:00:03]} 72. Rf5 {[%clk 0:00:07]}  Ke3 {[%clk 0:00:03]} 1/2-1/2


[Site "https://www.chess.com"]

[Event "Titled Tuesday Blitz December 27 Early 2022"]
[White "Hasangatin, Ramil"]
[Black "Omariev, Maksim"]
[WhiteFideId "4122160"]
[BlackFideId "4193423"]
[WhiteElo "2457"]
[BlackElo "2304"]
[Result "1-0"]
[Round "03"]
[TimeControl "180+2"]
[Date "2022.12.27"]
[WhiteClock "0:00:04"]
[BlackClock "0:00:05"]

1. e4 {[%clk 0:03:00]}  c5 {[%clk 0:01:42]} 2. Nf3 {[%clk 0:02:58]}  d6 {[%clk 0:01:42]} 3. d4 {[%clk 0:02:58]}  cxd4 {[%clk 0:01:43]} 4. Qxd4 {[%clk 0:02:58]}  a6 {[%clk 0:01:32]} 5. Be3 {[%clk 0:02:57]}  Nc6 {[%clk 0:01:32]} 6. Qb6 {[%clk 0:02:57]}  Qxb6 {[%clk 0:01:23]} 7. Bxb6 {[%clk 0:02:58]}  Nf6 {[%clk 0:01:24]} 8. Nc3 {[%clk 0:02:58]}  Bg4 {[%clk 0:01:23]} 9. Be2 {[%clk 0:02:58]}  e6 {[%clk 0:01:19]} 10. O-O-O {[%clk 0:02:57]}  Rc8 {[%clk 0:01:13]} 11. Rhe1 {[%clk 0:02:57]}  Be7 {[%clk 0:00:51]} 12. Nd2 {[%clk 0:02:48]}  Bxe2 {[%clk 0:00:45]} 13. Rxe2 {[%clk 0:02:49]}  Ne5 {[%clk 0:00:33]} 14. f4 {[%clk 0:02:18]}  Ned7 {[%clk 0:00:27]} 15. Bd4 {[%clk 0:02:04]}  O-O {[%clk 0:00:24]} 16. h3 {[%clk 0:01:38]}  Rfd8 {[%clk 0:00:24]} 17. g4 {[%clk 0:01:38]}  Nc5 {[%clk 0:00:19]} 18. g5 {[%clk 0:01:33]}  Nh5 {[%clk 0:00:17]} 19. Be3 {[%clk 0:01:21]}  b5 {[%clk 0:00:15]} 20. a3 {[%clk 0:01:21]}  g6 {[%clk 0:00:12]} 21. Nf1 {[%clk 0:00:39]}  Rd7 {[%clk 0:00:08]} 22. h4 {[%clk 0:00:39]}  Rdc7 {[%clk 0:00:07]} 23. Red2 {[%clk 0:00:36]}  Bf8 {[%clk 0:00:07]} 24. e5 {[%clk 0:00:27]}  d5 {[%clk 0:00:06]} 25. Bd4 {[%clk 0:00:16]}  Ng7 {[%clk 0:00:04]} 26. Ne3 {[%clk 0:00:16]}  Nh5 {[%clk 0:00:04]} 27. Rf2 {[%clk 0:00:14]}  Nb7 {[%clk 0:00:02]} 28. Ng4 {[%clk 0:00:13]}  Rc4 {[%clk 0:00:01]} 29. Rf3 {[%clk 0:00:11]}  Bc5 {[%clk 0:00:01]} 30. Bxc5 {[%clk 0:00:10]}  R4xc5 {[%clk 0:00:02]} 31. Kb1 {[%clk 0:00:08]}  Kg7 {[%clk 0:00:03]} 32. Rd2 {[%clk 0:00:08]}  Rc4 {[%clk 0:00:03]} 33. Ne2 {[%clk 0:00:07]}  Nc5 {[%clk 0:00:02]} 34. Rd4 {[%clk 0:00:04]}  Ne4 {[%clk 0:00:02]} 35. Rxc4 {[%clk 0:00:04]}  Rxc4 {[%clk 0:00:02]} 36. Kc1 {[%clk 0:00:04]}  Rc6 {[%clk 0:00:02]} 37. Nd4 {[%clk 0:00:04]}  Rc4 {[%clk 0:00:02]} 38. c3 {[%clk 0:00:04]}  Rc8 {[%clk 0:00:02]} 39. Nf6 {[%clk 0:00:04]}  Nc5 {[%clk 0:00:01]} 40. Kc2 {[%clk 0:00:03]}  Nxf6 {[%clk 0:00:01]} 41. exf6+ {[%clk 0:00:03]}  Kf8 {[%clk 0:00:02]} 42. Re3 {[%clk 0:00:04]}  Ne4 {[%clk 0:00:03]} 43. Nf3 {[%clk 0:00:04]}  Nd6 {[%clk 0:00:03]} 44. Ne5 {[%clk 0:00:04]}  Nc4 {[%clk 0:00:04]} 45. Re2 {[%clk 0:00:03]}  Nxe5 {[%clk 0:00:04]} 46. fxe5 {[%clk 0:00:04]}  Rc4 {[%clk 0:00:04]} 47. Rh2 {[%clk 0:00:04]}  Re4 {[%clk 0:00:04]} 48. h5 {[%clk 0:00:03]}  gxh5 {[%clk 0:00:05]} 49. Rxh5 {[%clk 0:00:03]}  Kg8 {[%clk 0:00:05]} 50. Kb3 {[%clk 0:00:02]}  Rxe5 {[%clk 0:00:05]} 51. Kb4 {[%clk 0:00:03]}  h6 {[%clk 0:00:05]} 52. Rxh6 {[%clk 0:00:02]}  Rxg5 {[%clk 0:00:06]} 53. Ka5 {[%clk 0:00:03]}  Rg6 {[%clk 0:00:06]} 54. Rh2 {[%clk 0:00:02]}  Rxf6 {[%clk 0:00:06]} 55. Kxa6 {[%clk 0:00:03]}  e5+ {[%clk 0:00:06]} 56. Kxb5 {[%clk 0:00:03]}  e4 {[%clk 0:00:05]} 57. a4 {[%clk 0:00:04]}  e3 {[%clk 0:00:05]} 58. a5 {[%clk 0:00:01]}  Re6 {[%clk 0:00:06]} 59. Re2 {[%clk 0:00:01]}  f5 {[%clk 0:00:06]} 60. a6 {[%clk 0:00:02]}  f4 {[%clk 0:00:06]} 61. a7 {[%clk 0:00:02]}  Re8 {[%clk 0:00:07]} 62. Kb6 {[%clk 0:00:03]}  f3 {[%clk 0:00:07]} 63. Rxe3 {[%clk 0:00:03]}  Rxe3 {[%clk 0:00:04]} 64. a8=Q+ {[%clk 0:00:03]}  Kf7 {[%clk 0:00:05]} 65. Qb7+ {[%clk 0:00:03]}  Kf6 {[%clk 0:00:05]} 66. Qxd5 {[%clk 0:00:03]}  Re6+ {[%clk 0:00:03]} 67. Kc7 {[%clk 0:00:03]}  Re5 {[%clk 0:00:03]} 68. Qd4 {[%clk 0:00:02]}  Ke6 {[%clk 0:00:02]} 69. Qf4 {[%clk 0:00:02]}  Rf5 {[%clk 0:00:02]} 70. Qe4+ {[%clk 0:00:01]}  Kf6 {[%clk 0:00:03]} 71. Qd4+ {[%clk 0:00:01]}  Kg5 {[%clk 0:00:03]} 72. Qf2 {[%clk 0:00:02]}  Kf4 {[%clk 0:00:03]} 73. b4 {[%clk 0:00:03]}  Re5 {[%clk 0:00:03]} 74. c4 {[%clk 0:00:03]}  Re2 {[%clk 0:00:04]} 75. Qf1 {[%clk 0:00:03]}  Ke3 {[%clk 0:00:04]} 76. c5 {[%clk 0:00:03]}  f2 {[%clk 0:00:04]} 77. b5 {[%clk 0:00:04]}  Re1 {[%clk 0:00:05]} 78. Qxf2+ {[%clk 0:00:04]}  Kxf2 {[%clk 0:00:05]} 79. b6 {[%clk 0:00:04]}  Rc1 {[%clk 0:00:05]} 80. c6 {[%clk 0:00:04]}  Ke3 {[%clk 0:00:05]} 81. b7 {[%clk 0:00:04]} 1-0


[Site "https://www.chess.com"]

[Event "Titled Tuesday Blitz December 27 Early 2022"]
[White "Jaracz, Pawel"]
[Black "Postnikov, Artem"]
[WhiteFideId "1102222"]
[BlackFideId "34153575"]
[WhiteElo "2467"]
[BlackElo "2197"]
[Result "1-0"]
[Round "03"]
[TimeControl "180+2"]
[Date "2022.12.27"]
[WhiteClock "0:00:07"]
[BlackClock "0:00:03"]

1. d4 {[%clk 0:03:00]}  d5 {[%clk 0:02:59]} 2. Nc3 {[%clk 0:03:00]}  Nf6 {[%clk 0:02:57]} 3. Bg5 {[%clk 0:03:00]}  c6 {[%clk 0:02:49]} 4. f3 {[%clk 0:02:57]}  b5 {[%clk 0:02:48]} 5. Qd2 {[%clk 0:02:55]}  Bf5 {[%clk 0:02:35]} 6. e3 {[%clk 0:02:47]}  Nbd7 {[%clk 0:02:30]} 7. Nge2 {[%clk 0:02:46]}  h6 {[%clk 0:02:22]} 8. Bh4 {[%clk 0:02:45]}  Bh7 {[%clk 0:02:19]} 9. a4 {[%clk 0:02:35]}  b4 {[%clk 0:02:16]} 10. Nd1 {[%clk 0:02:34]}  a5 {[%clk 0:02:16]} 11. Nf2 {[%clk 0:02:33]}  e6 {[%clk 0:02:16]} 12. g4 {[%clk 0:02:14]}  Be7 {[%clk 0:02:15]} 13. Bg3 {[%clk 0:02:14]}  c5 {[%clk 0:02:03]} 14. dxc5 {[%clk 0:02:08]}  Bxc5 {[%clk 0:02:01]} 15. Nd4 {[%clk 0:02:08]}  Qb6 {[%clk 0:01:57]} 16. h4 {[%clk 0:01:46]}  e5 {[%clk 0:01:38]} 17. Nb5 {[%clk 0:01:24]}  Bxe3 {[%clk 0:01:35]} 18. Qe2 {[%clk 0:01:22]}  O-O {[%clk 0:01:26]} 19. Nd3 {[%clk 0:01:04]}  e4 {[%clk 0:01:23]} 20. fxe4 {[%clk 0:01:02]}  Nxe4 {[%clk 0:01:19]} 21. Bc7 {[%clk 0:01:01]}  Qc6 {[%clk 0:00:29]} 22. Qxe3 {[%clk 0:01:00]}  Qxc2 {[%clk 0:00:24]} 23. Qc1 {[%clk 0:00:28]}  b3 {[%clk 0:00:12]} 24. Nd4 {[%clk 0:00:24]}  Qxc1+ {[%clk 0:00:12]} 25. Rxc1 {[%clk 0:00:24]}  Ng3 {[%clk 0:00:13]} 26. Rh3 {[%clk 0:00:23]}  Nxf1 {[%clk 0:00:13]} 27. Kxf1 {[%clk 0:00:24]}  Rac8 {[%clk 0:00:12]} 28. Nf4 {[%clk 0:00:22]}  Nf6 {[%clk 0:00:08]} 29. g5 {[%clk 0:00:21]}  Ne4 {[%clk 0:00:08]} 30. gxh6 {[%clk 0:00:20]}  gxh6 {[%clk 0:00:07]} 31. Ke2 {[%clk 0:00:19]}  Rfe8 {[%clk 0:00:07]} 32. Re3 {[%clk 0:00:15]}  Ng3+ {[%clk 0:00:05]} 33. Kf3 {[%clk 0:00:14]}  Ne4 {[%clk 0:00:05]} 34. Nxd5 {[%clk 0:00:12]}  Nd2+ {[%clk 0:00:03]} 35. Kf4 {[%clk 0:00:13]}  Rxe3 {[%clk 0:00:02]} 36. Nxe3 {[%clk 0:00:11]}  Kf8 {[%clk 0:00:02]} 37. Nd5 {[%clk 0:00:10]}  Ke8 {[%clk 0:00:02]} 38. Nf6+ {[%clk 0:00:10]}  Ke7 {[%clk 0:00:03]} 39. Nxh7 {[%clk 0:00:09]}  Kd7 {[%clk 0:00:03]} 40. Nf6+ {[%clk 0:00:08]}  Ke7 {[%clk 0:00:04]} 41. Bd6+ {[%clk 0:00:07]}  Kxf6 {[%clk 0:00:03]} 42. Rxc8 {[%clk 0:00:07]} 1-0


[Site "https://www.chess.com"]

[Event "Titled Tuesday Blitz December 27 Early 2022"]
[White "Jimenez, Joaquin"]
[Black "Herman, Daniel"]
[WhiteFideId "109860"]
[BlackFideId "30935008"]
[WhiteElo "2195"]
[BlackElo "1956"]
[Result "1-0"]
[Round "03"]
[TimeControl "180+2"]
[Date "2022.12.27"]
[WhiteClock "0:01:00"]
[BlackClock "0:00:21"]

1. e4 {[%clk 0:03:00]}  g6 {[%clk 0:03:00]} 2. d4 {[%clk 0:02:57]}  Bg7 {[%clk 0:03:01]} 3. Nc3 {[%clk 0:02:55]}  d6 {[%clk 0:03:01]} 4. Be3 {[%clk 0:02:55]}  a6 {[%clk 0:03:01]} 5. a4 {[%clk 0:02:54]}  b6 {[%clk 0:03:00]} 6. Qd2 {[%clk 0:02:53]}  Bb7 {[%clk 0:02:59]} 7. f3 {[%clk 0:02:53]}  Nd7 {[%clk 0:02:53]} 8. Bc4 {[%clk 0:02:53]}  e6 {[%clk 0:02:51]} 9. Nge2 {[%clk 0:02:52]}  h6 {[%clk 0:02:49]} 10. h4 {[%clk 0:02:50]}  Ne7 {[%clk 0:02:48]} 11. h5 {[%clk 0:02:50]}  g5 {[%clk 0:02:44]} 12. d5 {[%clk 0:02:50]}  exd5 {[%clk 0:02:29]} 13. Nxd5 {[%clk 0:02:40]}  Nxd5 {[%clk 0:02:27]} 14. Bxd5 {[%clk 0:02:39]}  Bxd5 {[%clk 0:02:26]} 15. Qxd5 {[%clk 0:02:37]}  O-O {[%clk 0:02:24]} 16. c3 {[%clk 0:02:31]}  Nf6 {[%clk 0:02:14]} 17. Qf5 {[%clk 0:02:24]}  Qd7 {[%clk 0:02:11]} 18. Qxd7 {[%clk 0:02:23]}  Nxd7 {[%clk 0:02:12]} 19. O-O-O {[%clk 0:02:21]}  Nc5 {[%clk 0:02:10]} 20. Bxc5 {[%clk 0:02:20]}  bxc5 {[%clk 0:02:11]} 21. Ng3 {[%clk 0:02:18]}  Be5 {[%clk 0:02:01]} 22. Nf5 {[%clk 0:02:17]}  Kh7 {[%clk 0:02:01]} 23. Kc2 {[%clk 0:02:16]}  Rab8 {[%clk 0:02:01]} 24. Ne3 {[%clk 0:02:15]}  Rb7 {[%clk 0:01:50]} 25. g4 {[%clk 0:02:13]}  Rfb8 {[%clk 0:01:43]} 26. Rb1 {[%clk 0:02:11]}  Rb3 {[%clk 0:01:25]} 27. Nc4 {[%clk 0:02:09]}  f6 {[%clk 0:01:23]} 28. Na5 {[%clk 0:01:59]}  R3b6 {[%clk 0:01:22]} 29. Rhd1 {[%clk 0:01:55]}  Kg7 {[%clk 0:01:21]} 30. Nc4 {[%clk 0:01:53]}  Rb3 {[%clk 0:01:20]} 31. Nd2 {[%clk 0:01:52]}  R3b6 {[%clk 0:01:19]} 32. b3 {[%clk 0:01:51]}  Kf7 {[%clk 0:01:18]} 33. Nc4 {[%clk 0:01:51]}  R6b7 {[%clk 0:01:16]} 34. Rb2 {[%clk 0:01:47]}  Ke6 {[%clk 0:01:12]} 35. Ne3 {[%clk 0:01:47]}  a5 {[%clk 0:01:06]} 36. Nf5 {[%clk 0:01:46]}  c4 {[%clk 0:01:05]} 37. Rdb1 {[%clk 0:01:42]}  Rh8 {[%clk 0:00:47]} 38. bxc4 {[%clk 0:01:32]}  Rxb2+ {[%clk 0:00:48]} 39. Rxb2 {[%clk 0:01:31]}  Kd7 {[%clk 0:00:43]} 40. Rb5 {[%clk 0:01:31]}  Kc6 {[%clk 0:00:40]} 41. Rxa5 {[%clk 0:01:31]}  Kb6 {[%clk 0:00:36]} 42. Rb5+ {[%clk 0:01:30]}  Ka6 {[%clk 0:00:36]} 43. Ne7 {[%clk 0:01:24]}  c5 {[%clk 0:00:29]} 44. Nd5 {[%clk 0:01:21]}  Ka7 {[%clk 0:00:26]} 45. a5 {[%clk 0:01:20]}  Ka6 {[%clk 0:00:26]} 46. Kb3 {[%clk 0:01:19]}  Ka7 {[%clk 0:00:25]} 47. Ka4 {[%clk 0:01:19]}  Ka6 {[%clk 0:00:24]} 48. Rb6+ {[%clk 0:01:19]}  Ka7 {[%clk 0:00:25]} 49. Kb5 {[%clk 0:01:19]}  Rh7 {[%clk 0:00:23]} 50. a6 {[%clk 0:01:16]}  Rf7 {[%clk 0:00:21]} 51. Rc6 {[%clk 0:01:16]}  Rd7 {[%clk 0:00:18]} 52. Rc7+ {[%clk 0:01:09]}  Rxc7 {[%clk 0:00:18]} 53. Nxc7 {[%clk 0:01:09]}  Bxc3 {[%clk 0:00:19]} 54. Ne8 {[%clk 0:01:07]}  Be5 {[%clk 0:00:18]} 55. Kc6 {[%clk 0:01:07]}  Kxa6 {[%clk 0:00:18]} 56. Nxd6 {[%clk 0:01:07]}  Ka5 {[%clk 0:00:18]} 57. Kd5 {[%clk 0:01:04]}  Kb4 {[%clk 0:00:19]} 58. Nf7 {[%clk 0:01:04]}  Bd4 {[%clk 0:00:18]} 59. Nxh6 {[%clk 0:01:04]}  Kc3 {[%clk 0:00:18]} 60. Nf5 {[%clk 0:01:04]}  Kd3 {[%clk 0:00:14]} 61. h6 {[%clk 0:01:04]}  Ke2 {[%clk 0:00:15]} 62. h7 {[%clk 0:01:04]}  Kxf3 {[%clk 0:00:15]} 63. h8=Q {[%clk 0:01:04]}  Kxg4 {[%clk 0:00:16]} 64. Nxd4 {[%clk 0:01:01]}  cxd4 {[%clk 0:00:17]} 65. Kxd4 {[%clk 0:01:01]}  Kf3 {[%clk 0:00:18]} 66. Qh3+ {[%clk 0:01:00]}  Kf4 {[%clk 0:00:18]} 67. Qf5+ {[%clk 0:00:59]}  Kg3 {[%clk 0:00:18]} 68. Qxf6 {[%clk 0:01:00]}  g4 {[%clk 0:00:19]} 69. e5 {[%clk 0:01:00]}  Kh2 {[%clk 0:00:20]} 70. e6 {[%clk 0:01:01]}  g3 {[%clk 0:00:20]} 71. e7 {[%clk 0:01:00]}  g2 {[%clk 0:00:21]} 72. Qh4+ {[%clk 0:01:00]}  Kg1 {[%clk 0:00:21]} 73. e8=Q {[%clk 0:01:00]}  Kf1 {[%clk 0:00:21]} 74. Qee1# {[%clk 0:01:00]} 1-0


[Site "https://www.chess.com"]

[Event "Titled Tuesday Blitz December 27 Early 2022"]
[White "Jobava, Baadur"]
[Black "Garcia Ramos, Daniel"]
[WhiteFideId "13601520"]
[BlackFideId "32010311"]
[WhiteElo "2578"]
[BlackElo "2442"]
[Result "1-0"]
[Round "03"]
[TimeControl "180+2"]
[Date "2022.12.27"]
[WhiteClock "0:02:06"]
[BlackClock "0:00:36"]

1. b3 {[%clk 0:03:00]}  d5 {[%clk 0:02:59]} 2. Bb2 {[%clk 0:03:01]}  Nf6 {[%clk 0:03:00]} 3. d3 {[%clk 0:03:02]}  e6 {[%clk 0:03:01]} 4. Nd2 {[%clk 0:03:03]}  Be7 {[%clk 0:03:01]} 5. g3 {[%clk 0:03:03]}  O-O {[%clk 0:03:01]} 6. Bg2 {[%clk 0:03:04]}  Nbd7 {[%clk 0:03:02]} 7. e4 {[%clk 0:03:04]}  a5 {[%clk 0:03:02]} 8. a3 {[%clk 0:03:04]}  b5 {[%clk 0:02:53]} 9. Ne2 {[%clk 0:03:02]}  Bb7 {[%clk 0:02:53]} 10. e5 {[%clk 0:03:02]}  Ne8 {[%clk 0:02:53]} 11. O-O {[%clk 0:03:02]}  c5 {[%clk 0:02:52]} 12. Nf4 {[%clk 0:02:55]}  Qc7 {[%clk 0:02:23]} 13. Re1 {[%clk 0:02:52]}  g6 {[%clk 0:02:22]} 14. h4 {[%clk 0:02:51]}  h5 {[%clk 0:02:22]} 15. Nf3 {[%clk 0:02:37]}  d4 {[%clk 0:02:14]} 16. b4 {[%clk 0:02:33]}  axb4 {[%clk 0:02:09]} 17. axb4 {[%clk 0:02:33]}  Rxa1 {[%clk 0:02:07]} 18. Bxa1 {[%clk 0:02:34]}  Ng7 {[%clk 0:01:43]} 19. bxc5 {[%clk 0:02:31]}  Bxf3 {[%clk 0:01:43]} 20. Bxf3 {[%clk 0:02:29]}  Nxe5 {[%clk 0:01:43]} 21. Bxd4 {[%clk 0:02:28]}  Nxf3+ {[%clk 0:01:38]} 22. Qxf3 {[%clk 0:02:29]}  Bxc5 {[%clk 0:01:38]} 23. Bxg7 {[%clk 0:02:21]}  Kxg7 {[%clk 0:01:38]} 24. Rxe6 {[%clk 0:02:21]}  Bd4 {[%clk 0:00:44]} 25. Rxg6+ {[%clk 0:02:13]}  fxg6 {[%clk 0:00:38]} 26. Ne6+ {[%clk 0:02:13]}  Kh7 {[%clk 0:00:38]} 27. Nxf8+ {[%clk 0:02:13]}  Kg8 {[%clk 0:00:36]} 28. Ne6 {[%clk 0:02:06]} 1-0


[Site "https://www.chess.com"]

[Event "Titled Tuesday Blitz December 27 Early 2022"]
[White "Karas, Marek"]
[Black "Weetik, Vjacheslav"]
[WhiteFideId "14928558"]
[BlackFideId "4153472"]
[WhiteElo "2227"]
[BlackElo "2423"]
[Result "1/2-1/2"]
[Round "03"]
[TimeControl "180+2"]
[Date "2022.12.27"]
[WhiteClock "0:01:31"]
[BlackClock "0:00:20"]

1. d4 {[%clk 0:02:56]}  Nf6 {[%clk 0:02:59]} 2. Nf3 {[%clk 0:02:54]}  g6 {[%clk 0:02:59]} 3. c4 {[%clk 0:02:54]}  Bg7 {[%clk 0:03:00]} 4. Nc3 {[%clk 0:02:55]}  d6 {[%clk 0:03:00]} 5. e4 {[%clk 0:02:55]}  O-O {[%clk 0:03:01]} 6. Be2 {[%clk 0:02:56]}  e5 {[%clk 0:03:01]} 7. Be3 {[%clk 0:02:57]}  Ng4 {[%clk 0:03:00]} 8. Bg5 {[%clk 0:02:57]}  f6 {[%clk 0:03:00]} 9. Bh4 {[%clk 0:02:58]}  g5 {[%clk 0:03:01]} 10. Bg3 {[%clk 0:02:58]}  Nh6 {[%clk 0:02:59]} 11. d5 {[%clk 0:02:57]}  Nd7 {[%clk 0:02:48]} 12. Nd2 {[%clk 0:02:57]}  f5 {[%clk 0:02:40]} 13. exf5 {[%clk 0:02:57]}  Nxf5 {[%clk 0:02:35]} 14. Bd3 {[%clk 0:02:57]}  Nc5 {[%clk 0:02:32]} 15. Nde4 {[%clk 0:02:53]}  Nxd3+ {[%clk 0:02:27]} 16. Qxd3 {[%clk 0:02:54]}  Nd4 {[%clk 0:02:17]} 17. O-O {[%clk 0:02:53]}  Bf5 {[%clk 0:02:16]} 18. f3 {[%clk 0:02:52]}  h5 {[%clk 0:02:10]} 19. Bf2 {[%clk 0:02:46]}  g4 {[%clk 0:02:05]} 20. fxg4 {[%clk 0:02:45]}  Bxg4 {[%clk 0:01:47]} 21. Be3 {[%clk 0:02:39]}  Qd7 {[%clk 0:01:39]} 22. Rxf8+ {[%clk 0:02:20]}  Rxf8 {[%clk 0:01:38]} 23. Rf1 {[%clk 0:02:21]}  Qe8 {[%clk 0:01:18]} 24. Rxf8+ {[%clk 0:02:13]}  Qxf8 {[%clk 0:01:16]} 25. Qf1 {[%clk 0:02:14]}  Qxf1+ {[%clk 0:01:06]} 26. Kxf1 {[%clk 0:02:14]}  Bf5 {[%clk 0:01:03]} 27. h3 {[%clk 0:02:06]}  a6 {[%clk 0:00:57]} 28. Kf2 {[%clk 0:02:03]}  b5 {[%clk 0:00:46]} 29. cxb5 {[%clk 0:02:02]}  axb5 {[%clk 0:00:46]} 30. a3 {[%clk 0:02:02]}  Bg6 {[%clk 0:00:39]} 31. Bg5 {[%clk 0:01:59]}  Bf8 {[%clk 0:00:31]} 32. Bd8 {[%clk 0:01:56]}  c6 {[%clk 0:00:31]} 33. dxc6 {[%clk 0:01:54]}  Nxc6 {[%clk 0:00:27]} 34. Bc7 {[%clk 0:01:48]}  b4 {[%clk 0:00:24]} 35. axb4 {[%clk 0:01:47]}  Nxb4 {[%clk 0:00:24]} 36. Bxd6 {[%clk 0:01:44]}  Bxd6 {[%clk 0:00:24]} 37. Nxd6 {[%clk 0:01:43]}  Nd3+ {[%clk 0:00:24]} 38. Ke3 {[%clk 0:01:43]}  Nxb2 {[%clk 0:00:25]} 39. g4 {[%clk 0:01:36]}  hxg4 {[%clk 0:00:24]} 40. hxg4 {[%clk 0:01:37]}  Kg7 {[%clk 0:00:21]} 41. Nf5+ {[%clk 0:01:32]}  Bxf5 {[%clk 0:00:19]} 42. gxf5 {[%clk 0:01:32]}  Nc4+ {[%clk 0:00:19]} 43. Ke4 {[%clk 0:01:31]}  Nd6+ {[%clk 0:00:19]} 44. Kxe5 {[%clk 0:01:31]}  Nxf5 {[%clk 0:00:20]} 1/2-1/2


[Site "https://www.chess.com"]